bitfinex-derivatives/quotes_BNBF0:USTF0_20250521
["timestamp","ask_amount","ask_price","bid_price","bid_amount"]
[1747794622783,1.229,650.83,649.93,0.62244835]
[1747794623079,1.229,650.83,649.94,1.75081212]
[1747794623281,1.229,650.83,649.95,0.62244835]
[1747794623477,1.229,650.83,649.96,0.62244835]
[1747794623680,1.229,650.83,649.97,0.62244835]
[1747794623880,1.229,650.83,649.98,1.75081212]
[1747794624078,1.229,650.83,649.99,0.62244835]
[1747794624282,1.229,650.83,650.0,0.62244835]
[1747794624482,1.229,650.83,650.01,0.62244835]
[1747794624683,1.229,650.83,650.02,1.75081212]
[1747794624883,1.229,650.83,650.03,0.62244835]
[1747794625085,1.229,650.83,650.04,1.75081212]
[1747794625380,1.229,650.83,650.05,1.75081212]
[1747794625578,1.229,650.83,650.06,0.62256443]
[1747794625783,1.229,650.83,650.07,1.7509282]
[1747794625982,1.229,650.83,650.08,0.62256443]
[1747794626183,1.229,650.83,650.09,1.7509282]
[1747794626381,1.229,650.83,650.1,0.62256443]
[1747794626585,1.229,650.83,650.11,0.93018077]
[1747794626783,1.229,650.83,650.12,0.62256443]
[1747794626981,1.229,650.83,650.13,0.62256443]
[1747794627182,1.229,650.83,650.14,0.62256443]
[1747794627387,1.229,650.83,650.15,0.62256443]
[1747794627688,1.229,650.83,650.11,0.30761634]
[1747794627887,1.229,650.83,650.12,0.62266204]
[1747794628088,1.229,650.83,650.13,0.62266204]
[1747794628286,1.229,650.83,650.14,0.62266204]
[1747794628490,1.229,650.83,650.15,0.62266204]
[1747794628687,1.229,650.83,650.16,0.62266204]
[1747794628891,1.229,650.83,650.15,0.30761634]
[1747794629088,1.229,650.83,650.16,0.62295348]
[1747794629292,1.229,650.83,650.15,0.30761634]
[1747794629492,1.229,650.83,650.16,0.62296865]
[1747794629793,1.229,650.83,650.15,0.30761634]
[1747794629986,1.229,650.83,649.95,1.142]
[1747794629987,1.229,650.83,650.16,0.93058648]
[1747794630191,1.229,650.83,650.16,0.30761634]
[1747794630694,1.229,650.83,650.17,0.62298667]
[1747794630993,1.229,650.83,650.16,0.30761634]
[1747794631295,1.229,650.83,650.17,0.62300103]
[1747794631494,1.229,650.83,649.95,1.142]
[1747794631694,1.229,650.83,649.96,0.6230046]
[1747794631994,1.229,650.83,649.97,1.75293724]
[1747794632191,1.229,650.83,649.98,0.6230046]
[1747794632392,1.229,650.83,649.99,1.75293724]
[1747794632694,1.229,650.83,650.0,0.93062051]
[1747794632994,1.229,650.83,650.01,0.6230046]
[1747794633195,1.229,650.83,650.0,0.30761591]
[1747794633196,1.229,650.83,650.02,1.75293724]
[1747794633394,1.229,650.83,650.03,1.75293724]
[1747794633595,1.229,650.83,650.04,0.6230046]
[1747794633890,1.229,650.83,650.05,1.75293724]
[1747794634190,1.229,650.83,650.06,1.75293724]
[1747794634394,1.229,650.83,650.07,0.6230046]
[1747794634596,1.229,650.83,650.08,0.6230046]
[1747794634895,1.229,650.83,650.09,0.6230046]
[1747794635090,1.229,650.83,650.1,1.75293724]
[1747794635295,1.229,650.83,650.11,0.6230046]
[1747794635495,1.229,650.83,650.12,0.6230046]
[1747794635697,1.229,650.83,650.13,0.6230046]
[1747794635892,1.229,650.83,650.14,0.6230046]
[1747794636094,1.229,650.83,650.15,0.6230046]
[1747794636294,1.229,650.83,650.16,0.6230046]
[1747794636589,1.229,650.83,650.13,0.30761591]
[1747794636791,1.229,650.83,650.14,0.62229401]
[1747794636994,1.229,650.83,650.15,0.62229401]
[1747794637195,1.229,650.83,650.16,0.62229401]
[1747794637394,1.229,650.83,650.14,0.30761591]
[1747794637592,1.229,650.83,650.15,0.62232102]
[1747794637792,1.229,650.83,650.16,0.62232102]
[1747794637996,1.229,650.83,650.14,0.30761591]
[1747794638197,1.229,650.83,650.15,0.62232074]
[1747794638397,1.229,650.83,650.14,0.30761591]
[1747794638398,1.229,650.83,650.16,0.92993665]
[1747794638599,1.229,650.83,650.16,0.30761591]
[1747794640398,1.229,650.83,650.17,0.30761591]
[1747794641699,1.229,650.83,650.18,0.30761591]
[1747794643202,1.229,650.83,649.9,0.25350334]
[1747794643399,1.229,650.83,649.91,0.62256182]
[1747794643595,1.229,650.83,649.92,1.75297036]
[1747794643800,1.229,650.83,649.93,0.62256182]
[1747794643998,1.229,650.83,649.94,0.62256182]
[1747794644194,1.229,650.83,649.95,0.62262166]
[1747794644398,1.229,650.83,649.96,0.93024014]
[1747794644700,1.229,650.83,649.97,1.7530302]
[1747794645001,1.229,650.83,649.98,0.62262166]
[1747794645300,1.229,650.83,649.99,1.7530302]
[1747794645500,1.229,650.83,650.0,1.7530302]
[1747794645701,1.229,650.83,650.01,0.62262166]
[1747794645900,1.229,650.83,650.02,0.62262166]
[1747794646098,1.229,650.83,650.03,1.75309995]
[1747794646296,1.229,650.83,650.04,0.62269141]
[1747794646501,1.229,650.83,650.05,0.62269141]
[1747794646798,1.229,650.83,650.06,0.62269141]
[1747794646996,1.229,650.83,650.07,0.62269141]
[1747794647201,1.229,650.83,650.08,1.75309995]
[1747794647402,1.229,650.83,650.09,0.62269141]
[1747794647604,1.229,650.83,650.1,0.62269141]
[1747794647804,1.229,650.83,650.11,0.62269141]
[1747794648005,1.229,650.83,650.12,0.62269141]
[1747794648304,1.229,650.83,650.13,0.62269141]
[1747794648604,1.229,650.83,650.14,0.62269141]
[1747794648804,1.229,650.83,650.12,0.30761848]
[1747794649104,1.229,650.83,650.13,0.6229104]
[1747794649305,1.229,650.83,650.14,0.6229104]
[1747794649601,1.229,650.83,650.12,0.30761848]
[1747794649799,1.229,650.83,650.13,0.62296655]
[1747794650004,1.229,650.83,650.14,0.62296655]
[1747794650204,1.229,650.83,650.13,0.30761848]
[1747794650401,1.229,650.83,650.14,0.62296655]
[1747794650606,1.229,650.83,650.15,0.62296655]
[1747794650801,1.229,650.83,650.13,0.30761848]
[1747794651001,1.229,650.83,650.16,0.30761848]
[1747794652408,1.229,650.83,650.17,0.30761848]
[1747794654209,1.229,650.83,650.18,0.30761848]
[1747794655714,1.229,650.83,650.19,0.30761848]
[1747794656314,1.229,650.83,650.2,0.62321318]
[1747794656509,1.229,650.83,650.21,0.62321318]
[1747794656715,1.229,650.83,650.22,0.62321318]
[1747794656919,1.229,650.83,650.19,0.30761848]
[1747794657116,1.229,650.83,650.23,0.30761848]
[1747794658316,1.229,650.83,649.98,0.25350334]
[1747794658515,1.229,650.83,649.99,1.75346028]
[1747794658711,1.229,650.83,650.0,1.75346028]
[1747794658917,1.229,650.83,650.01,0.62317254]
[1747794659117,1.229,650.83,650.02,0.62317254]
[1747794659317,1.229,650.83,650.03,1.75346028]
[1747794659515,1.229,650.83,650.03,1.43789089]
[1747794659711,1.229,650.83,650.04,0.62314353]
[1747794660015,1.229,650.83,650.05,1.75343127]
[1747794660216,1.229,650.83,650.06,1.75343127]
[1747794660515,1.229,650.83,650.07,0.62314353]
[1747794660723,1.229,650.83,650.08,0.62314353]
[1747794660912,1.229,650.83,650.09,0.62314353]
[1747794661118,1.229,650.83,650.1,0.62303865]
[1747794661317,1.229,650.83,650.11,0.62303865]
[1747794661517,1.229,650.83,650.12,0.62303865]
[1747794661718,1.229,650.83,650.13,1.75332639]
[1747794662018,1.229,650.83,650.14,1.75332639]
[1747794662219,1.229,650.83,650.15,0.62303865]
[1747794662419,1.229,650.83,650.16,0.62302221]
[1747794662713,1.229,650.83,650.17,0.62302221]
[1747794662917,1.229,650.83,650.18,0.62302221]
[1747794663117,1.229,650.83,650.19,0.62302221]
[1747794663319,1.229,650.83,650.2,1.75262371]
[1747794663518,1.229,650.83,650.21,0.62302221]
[1747794663718,1.229,650.83,650.22,0.62302221]
[1747794663917,1.229,650.83,650.23,2.06022686]
[1747794664218,1.229,650.83,650.24,0.62302221]
[1747794664414,1.229,650.83,650.25,1.75262371]
[1747794664614,1.229,650.83,650.26,0.62302221]
[1747794664917,3.8108132,651.34,650.27,1.75262371]
[1747794665115,3.8108132,651.34,650.28,0.62302221]
[1747794665313,3.8108132,651.34,650.29,1.75262371]
[1747794665516,3.8108132,651.57,650.3,0.62302221]
[1747794665817,3.8108132,651.57,650.31,0.62220098]
[1747794666012,3.8108132,651.57,650.32,0.92980413]
[1747794666216,3.8108132,651.57,650.33,0.62220098]
[1747794666416,3.8108132,651.57,650.32,0.30760315]
[1747794666616,3.8108132,651.57,650.33,0.62202255]
[1747794666812,3.8108132,651.57,650.32,0.30760315]
[1747794667721,3.8108132,651.57,650.33,0.30760315]
[1747794668018,5.1408132,651.57,650.33,0.30760315]
[1747794668718,5.1408132,651.57,650.21,1.847]
[1747794668918,5.1408132,651.57,650.22,0.62176535]
[1747794669119,5.1408132,651.57,650.23,1.74857188]
[1747794669315,5.1408132,651.57,650.24,0.62176535]
[1747794669516,5.1408132,651.57,650.25,1.74857188]
[1747794669716,5.1408132,651.57,650.26,0.62176535]
[1747794670018,5.1408132,651.57,650.27,0.62176535]
[1747794670214,5.1408132,651.57,650.28,0.62176535]
[1747794670419,5.1408132,651.57,650.29,0.62176535]
[1747794670619,5.1408132,651.57,650.3,0.62176535]
[1747794670820,5.1408132,651.57,650.21,1.847]
[1747794671120,5.1408132,651.57,650.22,0.62155515]
[1747794671320,5.1408132,651.57,650.23,1.7479817]
[1747794671513,5.1408132,651.57,650.24,0.62155515]
[1747794671717,5.1408132,651.57,650.25,0.62155515]
[1747794671924,5.1408132,651.57,650.26,0.62155515]
[1747794672119,5.1408132,651.57,650.27,0.62155515]
[1747794672319,5.1408132,651.57,650.28,0.62155515]
[1747794672520,5.1408132,651.57,650.21,1.847]
[1747794672720,5.1408132,651.57,650.22,1.74746899]
[1747794672925,5.1408132,651.57,650.23,0.62137324]
[1747794673121,5.1408132,651.57,650.24,0.62137324]
[1747794673322,5.1408132,651.57,650.25,0.62137324]
[1747794673522,5.1408132,651.57,650.26,0.62137324]
[1747794673722,5.1408132,651.57,650.27,0.62137324]
[1747794674022,5.1408132,651.57,650.28,0.62137324]
[1747794674216,5.1408132,651.57,650.29,0.62129772]
[1747794674420,5.1408132,651.57,650.21,1.847]
[1747794674621,5.1408132,651.57,650.22,0.62128264]
[1747794674916,5.1408132,651.57,650.21,1.847]
[1747794674917,5.1408132,651.57,650.23,0.62128264]
[1747794675119,5.1408132,651.57,650.24,0.62128264]
[1747794675320,5.1408132,651.57,650.25,0.62128264]
[1747794675520,5.1408132,651.57,650.26,0.62128264]
[1747794675715,5.1408132,651.57,650.21,1.847]
[1747794675920,5.1408132,651.57,650.22,0.62117885]
[1747794676121,5.1408132,651.57,650.23,0.62117885]
[1747794676318,5.1408132,651.57,650.24,0.62117885]
[1747794676517,5.1408132,651.57,650.21,1.847]
[1747794678424,0.26741769,651.56,650.21,1.847]
[1747794679318,3.8108132,651.31,650.21,1.847]
[1747794681524,0.26744441,651.3,650.21,1.847]
[1747794684027,3.8108132,651.31,650.21,1.847]
[1747794684525,0.26743619,651.29,650.21,1.847]
[1747794686327,1.105,651.28,650.21,1.847]
[1747794686629,1.105,651.28,650.22,0.62065389]
[1747794686826,1.105,651.28,650.23,0.62066036]
[1747794687024,1.105,651.28,650.21,1.847]
[1747794687328,1.105,651.28,650.22,0.62065509]
[1747794687525,1.105,651.28,650.21,1.847]
[1747794687526,1.105,651.28,650.23,0.62060697]
[1747794687724,1.105,651.28,650.21,1.847]
[1747794688131,1.105,651.28,650.22,0.62060671]
[1747794688333,0.26743721,651.27,650.21,1.847]
[1747794689233,0.26743721,651.27,650.22,0.62057659]
[1747794689433,0.26743721,651.27,650.23,0.62056291]
[1747794689738,0.26743721,651.27,649.97,0.25350334]
[1747794689938,0.26743721,651.27,649.99,0.25350334]
[1747794690139,1.105,651.28,650.0,1.74563701]
[1747794690339,1.105,651.28,650.01,0.62052642]
[1747794690539,1.105,651.28,650.02,0.62052642]
[1747794690733,1.105,651.28,650.03,0.62052642]
[1747794690936,1.105,651.28,650.04,0.62052642]
[1747794691134,1.105,651.28,650.05,2.05314138]
[1747794691338,0.26745263,651.27,650.06,1.74559893]
[1747794691535,0.26745263,651.27,650.07,0.62048834]
[1747794691736,0.26745263,651.27,650.08,0.62048834]
[1747794691940,0.26745263,651.27,650.09,1.74559893]
[1747794692136,0.26745263,651.27,650.1,0.62048834]
[1747794692338,1.105,651.28,650.11,1.74559893]
[1747794692542,1.105,651.28,650.12,0.62048834]
[1747794692740,1.105,651.28,650.13,1.74559893]
[1747794692941,1.105,651.28,650.14,0.62048834]
[1747794693238,1.105,651.28,650.15,1.7454092]
[1747794693443,1.105,651.28,650.16,0.62029861]
[1747794693637,1.105,651.28,650.17,0.92780298]
[1747794693842,1.105,651.28,650.18,0.62029861]
[1747794694036,1.105,651.28,650.19,1.7454092]
[1747794694241,1.105,651.28,650.2,0.62029861]
[1747794694438,1.105,651.28,650.21,0.62029861]
[1747794694742,1.105,651.28,650.22,2.05291357]
[1747794694942,1.105,651.28,650.23,0.62029861]
[1747794695140,1.105,651.28,650.24,1.7454092]
[1747794695336,1.105,651.28,650.25,0.62029861]
[1747794695540,1.105,651.28,650.26,0.62029861]
[1747794695739,1.105,651.28,650.27,0.62029861]
[1747794695938,1.105,651.28,650.28,0.62029861]
[1747794696244,1.105,651.28,650.29,0.62029861]
[1747794696443,1.105,651.28,650.3,0.62029861]
[1747794696638,1.105,651.28,650.27,0.30750437]
[1747794696839,1.105,651.28,650.28,0.61996841]
[1747794697044,1.105,651.28,650.29,0.92747278]
[1747794697237,1.105,651.28,650.3,0.61996841]
[1747794697437,1.105,651.28,650.31,0.61996841]
[1747794697642,1.105,651.28,650.32,0.61996841]
[1747794697842,1.105,651.28,650.29,0.30750437]
[1747794698038,1.105,651.28,650.3,0.30750437]
[1747794698244,1.105,651.28,650.31,0.61991104]
[1747794698445,1.105,651.28,650.32,0.61991104]
[1747794698744,1.105,651.28,650.3,0.30750437]
[1747794698944,1.105,651.28,650.31,0.61986224]
[1747794699145,1.105,651.28,650.32,0.61986224]
[1747794699447,1.105,651.28,650.31,0.30750437]
[1747794699647,1.105,651.28,650.32,0.61982503]
[1747794699846,1.105,651.28,650.31,0.30750437]
[1747794700046,1.105,651.28,650.32,0.9273294]
[1747794700242,1.105,651.28,650.32,0.30750437]
[1747794701648,1.105,651.28,650.33,0.30750437]
[1747794703048,1.105,651.28,650.14,1.507]
[1747794703347,1.105,651.28,650.15,1.74298172]
[1747794703547,1.105,651.28,650.16,0.61976118]
[1747794703747,1.105,651.28,650.17,0.61976118]
[1747794703949,1.105,651.28,650.18,0.61976118]
[1747794704146,1.105,651.28,650.14,1.507]
[1747794704345,1.105,651.28,650.15,0.61983282]
[1747794704546,1.105,651.28,650.16,0.61983282]
[1747794704749,1.105,651.28,650.14,1.507]
[1747794704750,1.105,651.28,650.17,0.61983282]
[1747794704945,1.105,651.28,650.14,1.507]
[1747794705250,1.105,651.28,650.17,0.30753116]
[1747794706451,0.26744646,651.27,650.18,0.62001591]
[1747794706651,0.26744646,651.27,650.19,0.30753116]
[1747794708048,0.26744646,651.27,650.14,1.507]
[1747794708253,1.105,651.28,650.15,0.62002769]
[1747794708455,0.26744646,651.26,650.16,0.62002769]
[1747794708753,0.26744646,651.26,650.17,0.92755475]
[1747794708953,0.26744646,651.26,650.18,0.62002769]
[1747794709154,0.26744646,651.26,650.19,0.62002769]
[1747794709452,0.26744646,651.26,650.2,0.62002769]
[1747794709654,0.26744646,651.26,650.21,0.62002769]
[1747794709852,0.26744646,651.26,650.17,0.30752706]
[1747794710053,0.26744646,651.26,650.18,0.62016469]
[1747794710251,0.26744646,651.26,650.19,0.62016469]
[1747794710453,0.26744646,651.26,650.2,0.62016469]
[1747794710650,0.26744646,651.26,650.21,0.62016469]
[1747794710851,0.26744646,651.26,650.18,0.30752706]
[1747794711048,0.26744646,651.26,650.19,0.62024376]
[1747794711249,1.105,651.28,650.2,0.62024376]
[1747794711450,1.105,651.28,650.21,0.62024376]
[1747794711653,0.26744132,651.25,650.22,0.62024376]
[1747794711854,0.26744132,651.25,650.14,1.507]
[1747794712055,0.26744132,651.25,650.15,1.74490184]
[1747794712255,0.26744132,651.25,650.16,0.62036545]
[1747794712458,0.26744132,651.25,650.17,1.74490184]
[1747794712658,0.26744132,651.25,650.18,0.62036545]
[1747794712853,0.26744132,651.25,650.19,1.74490184]
[1747794713058,0.26744132,651.25,650.2,0.62036545]
[1747794713259,0.26744132,651.25,650.17,0.30750784]
[1747794713260,0.26744132,651.25,650.21,1.74490184]
[1747794713561,0.26744132,651.25,650.22,0.62061153]
[1747794713858,0.26744132,651.25,650.23,0.62061153]
[1747794714065,1.105,651.28,650.24,0.62061153]
[1747794714259,1.105,651.28,650.14,1.507]
[1747794714459,1.105,651.28,650.15,1.74617703]
[1747794714660,0.26744235,651.27,650.16,0.62090661]
[1747794714855,0.26744235,651.27,650.17,1.74617703]
[1747794715058,0.26744235,651.27,650.17,1.12527042]
[1747794715257,0.26744235,651.27,650.18,0.62106788]
[1747794715456,0.26744235,651.27,650.19,0.62106788]
[1747794715654,0.26744235,651.27,650.2,0.62106788]
[1747794715860,0.26744235,651.27,650.21,0.62106788]
[1747794716059,0.26744235,651.27,650.22,0.62106788]
[1747794716257,0.26744235,651.27,650.23,0.62106788]
[1747794716460,0.26744235,651.27,650.24,0.62106788]
[1747794716663,0.26744235,651.27,650.25,0.62106788]
[1747794716967,0.26744235,651.27,650.26,0.62106788]
[1747794717159,3.81879201,652.51,650.27,0.62106788]
[1747794717362,0.26731396,651.26,650.14,1.507]
[1747794717563,0.26731396,651.26,650.15,0.62133824]
[1747794717760,3.81879201,652.51,650.16,1.74714997]
[1747794717959,3.81879201,651.67,650.17,0.62133824]
[1747794718163,3.81879201,651.67,650.18,0.62133824]
[1747794718364,0.26741564,651.66,650.19,0.62133824]
[1747794718565,0.26741564,651.66,650.2,0.62133824]
[1747794718761,0.26741564,651.66,650.21,0.62133824]
[1747794718958,1.416,651.65,650.22,0.62133824]
[1747794719161,1.416,651.65,650.23,0.62133824]
[1747794719361,1.416,651.65,650.24,0.92912644]
[1747794719563,1.416,651.65,650.25,0.62158132]
[1747794719765,1.416,651.65,650.26,0.62158132]
[1747794719966,1.416,651.65,650.24,0.30754512]
[1747794720167,1.416,651.65,650.27,0.30754512]
[1747794720967,1.416,651.65,650.27,1.59854512]
[1747794721166,1.416,651.65,650.27,1.291]
[1747794723369,0.26741153,651.64,650.27,1.291]
[1747794726070,1.416,651.65,650.27,1.291]
[1747794726365,0.26741975,651.63,650.27,1.291]
[1747794729168,1.416,651.65,650.27,1.291]
[1747794729572,3.81879201,651.27,650.27,1.291]
[1747794730374,0.26747113,651.26,650.27,1.291]
[1747794732175,3.81879201,651.27,650.27,1.291]
[1747794733377,0.26747113,651.26,650.27,1.291]
[1747794735171,3.81879201,651.27,650.27,1.291]
[1747794736377,0.26747113,651.26,650.27,1.291]
[1747794738178,3.81879201,651.27,650.27,1.291]
[1747794738378,3.81879201,651.44,650.27,1.291]
[1747794739578,0.26745366,651.43,650.27,1.291]
[1747794741081,3.81879201,651.44,650.27,1.291]
[1747794741381,0.26745366,651.42,650.27,1.291]
[1747794743686,1.535,651.41,650.27,1.291]
[1747794745385,0.26746496,651.4,650.27,1.291]
[1747794747088,1.535,651.41,650.27,1.291]
[1747794748390,0.26746496,651.4,650.27,1.291]
[1747794750290,1.535,651.41,650.27,1.291]
[1747794751593,0.26747935,651.4,650.27,1.291]
[1747794753290,1.535,651.41,650.27,1.291]
[1747794754395,0.26747935,651.4,650.27,1.291]
[1747794756195,3.81879201,651.96,650.27,1.291]
[1747794757397,0.26740844,651.95,650.27,1.291]
[1747794759296,3.81879201,651.96,650.27,1.291]
[1747794759897,1.221,651.95,650.27,1.291]
[1747794760400,0.26740947,651.94,650.27,1.291]
[1747794761897,3.81879201,651.09,650.27,1.291]
[1747794763299,0.26751431,651.08,650.27,1.291]
[1747794765101,3.81879201,651.09,650.27,1.291]
[1747794766402,0.26751431,651.08,650.27,1.291]
[1747794768103,3.81879201,651.09,650.27,1.291]
[1747794769404,0.26751431,651.08,650.27,1.291]
[1747794774600,3.81879201,650.94,650.27,1.291]
[1747794782517,5.28679201,650.94,650.27,1.291]
[1747794782815,1.468,650.94,650.27,1.291]
[1747794836564,1.468,650.94,650.28,0.62354634]
[1747794836863,1.468,650.94,650.29,0.62354605]
[1747794837063,1.468,650.94,649.67,0.26750711]
[1747794837359,1.468,650.94,649.68,0.62354361]
[1747794837563,1.468,650.94,649.69,1.74864933]
[1747794837766,1.468,650.94,649.7,0.62354361]
[1747794837961,1.468,650.94,649.99,0.25253552]
[1747794838166,1.468,650.94,650.0,0.62354361]
[1747794838366,1.468,650.94,650.01,0.62354361]
[1747794838560,1.468,650.94,650.02,1.74864933]
[1747794838761,1.468,650.94,650.03,0.62354361]
[1747794838963,1.468,650.94,650.04,0.62354361]
[1747794839163,1.468,650.94,650.05,1.74864933]
[1747794839364,1.468,650.94,650.06,0.93108347]
[1747794839564,1.468,650.94,650.07,0.62354361]
[1747794839761,1.468,650.94,650.08,0.62354361]
[1747794839961,1.468,650.94,650.09,0.62354361]
[1747794840266,1.468,650.94,650.1,0.62354361]
[1747794840463,1.468,650.94,650.11,0.62354361]
[1747794840667,1.468,650.94,650.12,0.62354361]
[1747794840870,1.468,650.94,650.13,1.74864933]
[1747794841063,1.468,650.94,650.14,0.62315969]
[1747794841263,1.468,650.94,650.15,0.62315969]
[1747794841469,1.468,650.94,650.16,1.74826541]
[1747794841667,1.468,650.94,650.17,0.62315969]
[1747794841969,1.468,650.94,650.18,0.62315969]
[1747794842270,1.468,650.94,650.19,0.6230004]
[1747794842470,1.468,650.94,650.2,0.6230004]
[1747794842671,1.468,650.94,650.21,0.6230004]
[1747794842872,1.468,650.94,650.22,1.74810612]
[1747794843173,1.468,650.94,650.23,1.74810668]
[1747794843472,1.468,650.94,650.24,0.62300096]
[1747794843665,1.468,650.94,650.25,0.62300096]
[1747794843870,1.468,650.94,650.26,0.62300096]
[1747794844068,1.468,650.94,650.27,0.93054082]
[1747794844270,1.468,650.94,650.28,0.62300096]
[1747794844474,1.468,650.94,650.29,0.62300096]
[1747794844772,1.468,650.94,650.3,0.62300096]
[1747794844973,1.468,650.94,650.31,0.62300096]
[1747794845173,1.468,650.94,650.32,0.62300096]
[1747794845474,1.468,650.94,650.33,0.62300096]
[1747794845672,1.468,650.94,650.34,0.62300096]
[1747794845874,1.468,650.94,650.35,0.62300096]
[1747794846076,1.468,650.94,650.36,0.62300096]
[1747794846277,1.468,650.94,650.11,0.25253552]
[1747794846278,1.468,650.94,650.37,0.62300096]
[1747794846478,3.81879201,651.47,650.38,0.62300096]
[1747794846778,3.81879201,651.47,650.39,0.62300096]
[1747794846977,3.81879201,651.47,650.4,0.62300096]
[1747794847172,3.81879201,651.47,650.41,0.62300096]
[1747794847378,0.26735708,651.46,650.42,0.62300096]
[1747794847578,4.08614909,651.46,650.43,0.62300096]
[1747794847772,4.08614909,651.46,650.44,0.62300096]
[1747794847972,4.08614909,651.46,650.45,0.62300096]
[1747794848274,4.08614909,651.46,650.46,0.62300096]
[1747794848476,4.08614909,651.46,650.47,1.74267096]
[1747794848677,0.26735708,651.46,650.48,0.62300096]
[1747794848872,0.26735708,651.46,650.49,0.62300096]
[1747794849075,1.466,651.45,650.5,0.62300096]
[1747794849276,1.466,651.45,650.51,0.62300096]
[1747794849476,1.466,651.45,650.47,0.30738532]
[1747794849477,1.466,651.45,650.52,0.62300096]
[1747794849678,1.466,651.45,650.53,0.62300096]
[1747794849877,1.466,651.45,650.54,0.62300096]
[1747794850077,1.466,651.45,650.55,0.62300096]
[1747794850379,1.466,651.45,650.25,0.25253552]
[1747794850577,1.466,651.45,650.26,1.73867434]
[1747794850779,1.466,651.45,650.27,0.62113459]
[1747794850978,1.466,651.45,650.28,1.73867434]
[1747794851178,1.466,651.45,650.29,0.62113459]
[1747794851379,1.466,651.45,650.3,0.62113459]
[1747794851680,1.466,651.45,650.31,1.73867434]
[1747794851882,1.466,651.45,650.32,0.92851848]
[1747794852179,1.466,651.45,650.33,1.73867434]
[1747794852381,1.466,651.45,650.34,0.62099134]
[1747794852581,1.466,651.45,650.35,0.62099134]
[1747794852782,1.466,651.45,650.36,0.62099134]
[1747794852980,1.466,651.45,650.37,0.62099134]
[1747794853182,1.466,651.45,650.38,0.62099134]
[1747794853480,1.466,651.45,650.37,0.30738389]
[1747794853983,1.466,651.45,650.04,1.42438673]
[1747794854183,1.466,651.45,650.05,0.62087648]
[1747794854384,1.466,651.45,650.06,0.62087648]
[1747794854583,1.466,651.45,650.07,1.73787932]
[1747794854777,1.466,651.45,650.08,0.62087648]
[1747794854982,1.466,651.45,650.09,0.62087648]
[1747794855183,1.466,651.45,650.1,0.62087648]
[1747794855383,1.466,651.45,650.11,0.62087648]
[1747794855583,1.466,651.45,650.12,0.62087648]
[1747794855785,1.466,651.45,650.13,1.73787932]
[1747794855981,1.466,651.45,649.89,0.26743619]
[1747794855982,1.466,651.45,650.14,2.04526321]
[1747794856186,1.466,651.45,650.15,0.62087648]
[1747794856385,1.466,651.45,650.16,1.73787932]
[1747794856586,1.466,651.45,650.17,0.62087648]
[1747794856786,1.466,651.45,650.18,0.62087648]
[1747794856988,1.466,651.45,650.19,0.62087648]
[1747794857187,1.466,651.45,650.14,0.30738389]
[1747794857391,1.466,651.45,650.15,0.62080075]
[1747794857585,1.466,651.45,650.16,0.62080075]
[1747794857783,1.466,651.45,650.17,0.62080075]
[1747794857983,1.466,651.45,650.18,0.62080075]
[1747794858287,1.466,651.45,650.19,0.62080075]
[1747794858587,1.466,651.45,650.15,0.30738389]
[1747794858790,1.466,651.45,650.16,0.62073832]
[1747794858983,1.466,651.45,650.17,0.62073832]
[1747794859187,1.466,651.45,650.18,0.92812221]
[1747794859387,1.466,651.45,650.19,0.62073832]
[1747794859588,0.26740742,651.44,650.2,0.62073832]
[1747794859785,0.26740742,651.44,650.21,0.62073832]
[1747794859984,0.26740742,651.44,650.18,0.30738389]
[1747794860186,0.26740742,651.44,650.19,0.62069152]
[1747794860388,0.26740742,651.44,650.18,0.30738389]
[1747794860389,0.26740742,651.44,650.2,0.62069152]
[1747794860589,0.26740742,651.44,650.21,0.62069152]
[1747794860788,0.26740742,651.44,650.22,0.62069152]